bitfinex/quotes_ETHUSD_20240825
["timestamp","ask_amount","ask_price","bid_price","bid_amount"]
[1724565664921,2.3556,2767.1,2766.5,8.48791035]
[1724565665491,5.96949,2767.1,2766.5,8.48791035]
[1724565665674,2.3556,2767.1,2766.6,3.61452]
[1724565665964,2.3556,2767.1,2766.7,3.6144]
[1724565668669,3.49015668,2767.1,2766.7,3.6144]
[1724565669176,2.3556,2767.1,2766.7,3.6144]
[1724565669532,3.49015668,2767.1,2766.7,3.6144]
[1724565670874,1.13455668,2767.2,2766.7,8.10259744]
[1724565672170,1.13455668,2767.2,2766.9,3.61413]
[1724565673454,1.13455668,2767.2,2766.7,10.83420035]
[1724565673666,1.13455668,2767.2,2766.7,4.87307035]
[1724565673897,1.13455668,2767.2,2766.7,3.6143]
[1724565674554,4.74832668,2767.2,2766.7,3.6143]
[1724565676099,1.13455668,2766.9,2766.7,3.6143]
[1724565677379,1.13455668,2767.0,2766.7,3.6143]
[1724565677811,1.13455668,2766.9,2766.7,3.6143]
[1724565677964,1.13455668,2767.0,2766.7,3.6143]
[1724565678498,1.13455668,2766.9,2766.7,3.6143]
[1724565691354,1.13455668,2766.9,2766.7,7.22863]
[1724565691559,1.13455668,2766.9,2766.7,4.69772004]
[1724565691761,1.13455668,2767.0,2766.7,3.34982004]
[1724565691910,1.13455668,2767.0,2766.9,10.75347035]
[1724565692427,1.13455668,2767.1,2767.0,3.61402]
[1724565692742,1.13455668,2767.2,2767.0,3.61402]
[1724565693067,1.13455668,2767.2,2767.1,3.61389]
[1724565697341,1.13455668,2767.2,2766.9,10.75335035]
[1724565697679,1.13455668,2767.2,2766.9,11.82868538]
[1724565698433,1.13455668,2767.2,2767.0,3.61401]
[1724565698639,1.13455668,2767.2,2766.9,1.25877035]
[1724565699168,1.13455668,2767.1,2766.7,7.28674035]
[1724565699523,1.13455668,2767.1,2766.7,10.90107035]
[1724565699868,1.13455668,2767.1,2766.7,12.72517739]
[1724565700074,1.13455668,2767.1,2766.8,3.61427]
[1724565700738,1.13455668,2767.2,2766.8,3.61427]
[1724565704529,1.13455668,2767.2,2766.9,3.61414]
[1724565704730,1.51274224,2767.4,2766.9,4.87291035]
[1724565704731,1.13455668,2767.3,2766.9,4.87291035]
[1724565704939,1.13455668,2767.3,2767.1,3.67237035]
[1724565706376,1.13455668,2767.3,2767.1,7.28619035]
[1724565708060,1.13455668,2767.3,2767.1,4.87259035]
[1724565710915,1.13455668,2767.3,2767.1,8.48640035]
[1724565711135,1.13455668,2767.4,2767.2,3.26224004]
[1724565711435,1.13455668,2767.4,2767.1,4.87257035]
[1724565714465,1.13455668,2767.5,2767.1,4.87257035]
[1724565714981,1.13455668,2767.5,2767.2,0.56528992]
[1724565715133,1.13455668,2767.5,2767.3,0.56528992]
[1724565715334,1.13455668,2767.5,2767.1,4.87257035]
[1724565715745,1.13455668,2767.5,2767.2,0.56528975]
[1724565715951,1.13455668,2767.5,2767.3,0.56528975]
[1724565716245,1.13455668,2767.5,2767.4,0.56528975]
[1724565717800,1.51274224,2767.6,2767.4,0.56528975]
[1724565717951,1.51274224,2767.6,2767.2,3.61374]
[1724565718156,1.13395761,2767.4,2767.3,0.56529879]
[1724565718668,1.13395761,2767.4,2767.3,0.56530213]
[1724565720696,2.00749559,2767.4,2767.3,0.56530213]
[1724565720932,2.38628022,2767.4,2767.3,0.56530213]
[1724565721184,2.38628022,2767.4,2767.0,2.4136]
[1724565721418,1.13410353,2767.3,2767.0,2.4136]
[1724565721742,1.13410353,2767.3,2767.1,0.56532579]
[1724565721943,1.13410353,2767.3,2767.2,0.56532579]
[1724565722690,7.60142224,2767.5,2767.2,0.56532579]
[1724565722691,1.13410353,2767.4,2767.2,0.56532579]
[1724565723007,2.46188154,2767.4,2767.3,0.56532579]
[1724565723205,2.08330006,2767.4,2767.3,0.56532579]
[1724565725435,0.9491393,2767.4,2767.3,0.56532579]
[1724565727625,2.46188154,2767.4,2767.3,0.56532579]
[1724565727834,0.9491393,2767.4,2767.3,0.56532579]
[1724565728135,0.9491393,2767.4,2767.3,0.56531338]
[1724565728354,2.46188154,2767.4,2767.3,0.56531338]
[1724565730129,0.9491393,2767.4,2767.3,0.56531338]
[1724565730364,1.13461587,2767.4,2767.3,0.56531338]
[1724565730560,1.13473636,2767.4,2767.3,0.56531338]
[1724565730977,7.60142224,2767.5,2767.3,0.56531338]
[1724565731289,7.60142224,2767.5,2767.4,0.56531338]
[1724565731443,7.60142224,2767.5,2767.4,0.56530601]
[1724565731646,7.39921712,2767.5,2767.4,0.56530601]
[1724565731967,8.91229229,2767.5,2767.4,0.56531203]
[1724565732172,7.39921712,2767.5,2767.0,6.02762]
[1724565732344,1.13479536,2767.3,2767.0,6.02762]
[1724565734382,1.13479536,2767.3,2767.1,3.95305978]
[1724565734537,1.13479536,2767.3,2767.1,3.61388]
[1724565738062,1.13479536,2767.3,2767.2,5.95836]
[1724565738299,1.13479536,2767.3,2767.2,7.04146103]
[1724565738607,1.13479536,2767.3,2767.2,7.38063142]
[1724565738764,1.13479536,2767.3,2767.2,7.04146103]
[1724565739199,1.13479536,2767.3,2767.2,7.38064042]
[1724565740412,1.13479536,2767.4,2767.3,3.61363]
[1724565740701,1.13479536,2767.4,2767.3,5.17812547]
[1724565741459,1.13479536,2767.4,2767.3,5.17810632]
[1724565741875,1.13479536,2767.4,2767.3,5.17810582]
[1724565742292,1.13479536,2767.4,2767.3,12.39510617]
[1724565742492,6.32435514,2768.2,2767.8,3.61297]
[1724565742493,1.13479536,2768.0,2767.8,3.61297]
[1724565742664,1.13479536,2768.0,2767.9,1.25877035]
[1724565743003,1.13479536,2768.1,2767.9,5.21069442]
[1724565743206,1.13479536,2768.1,2767.9,4.87161035]
[1724565743415,1.13479536,2768.2,2767.9,4.87161035]
[1724565744423,1.13479536,2768.3,2767.9,4.87161035]
[1724565744715,1.13479536,2768.3,2768.1,1.25877035]
[1724565745567,1.13479536,2768.4,2768.1,1.25877035]
[1724565747473,1.13479536,2768.5,2768.1,1.25877035]
[1724565750633,1.13479536,2768.6,2768.2,6.07497]
[1724565750775,1.13479536,2768.6,2768.2,6.80834404]
[1724565752469,1.13479536,2768.7,2768.5,1.25877035]
[1724565752678,1.13479536,2768.9,2768.5,7.33334035]
[1724565752858,14.89526048,2769.1,2768.5,7.33334035]
[1724565752859,1.13479536,2769.0,2768.5,7.33334035]
[1724565753387,12.20609536,2769.1,2768.5,7.33334035]
[1724565754239,8.59479536,2769.1,2768.5,3.72137035]
[1724565754440,1.13479536,2769.2,2768.7,4.87049035]
[1724565755144,1.13479536,2769.2,2768.7,3.61172]
[1724565755630,4.74594536,2769.2,2768.6,3.6118]
[1724565756376,3.61115,2769.2,2768.6,3.6118]
[1724565756669,3.61115,2769.2,2768.6,4.70633004]
[1724565757781,7.22239,2769.2,2768.6,4.70633004]
[1724565757961,3.61128,2769.1,2768.6,4.70633004]
[1724565761035,3.61128,2769.1,2768.6,4.70633004]
[1724565763292,3.61128,2769.1,2768.6,1.09453004]
[1724565763483,3.61128,2769.1,2768.5,3.72137035]
[1724565763695,3.61128,2769.1,2768.5,7.33340035]
[1724565769695,3.61141,2769.0,2768.5,7.33340035]
[1724565771011,3.61115,2769.2,2768.5,7.33340035]
[1724565771305,3.61136,2769.1,2768.5,7.33340035]
[1724565773375,3.61143,2769.0,2768.5,2.4626]
[1724565773593,3.61143,2769.0,2768.2,0.73337404]
[1724565773594,3.61191,2768.7,2768.2,3.74997035]
[1724565774909,3.61191,2768.7,2768.2,7.36240035]
[1724565775433,6.340701,2768.7,2768.2,3.74997035]
[1724565775610,3.61221,2768.4,2768.0,2.4912]
[1724565778697,3.61198,2768.6,2768.0,2.4912]
[1724565778897,3.61208,2768.5,2768.0,2.4912]
[1724565779625,5.47924214,2768.5,2768.0,2.4912]
[1724565780930,1.86716214,2768.5,2768.0,6.10383]
[1724565781155,3.61198,2768.6,2768.0,6.10383]
[1724565781490,3.61198,2768.6,2768.0,7.36260035]
[1724565782099,3.61198,2768.6,2768.1,3.61255]
[1724565786259,10.188791,2768.7,2768.1,3.61255]
[1724565786417,13.800671,2768.7,2768.1,3.61255]
[1724565787020,11.433071,2768.7,2768.1,3.61255]
[1724565790564,11.433071,2768.7,2768.2,3.61243]
[1724565790870,11.433071,2768.7,2768.3,2.3993]
[1724565791455,11.433071,2768.7,2768.1,2.3993]
[1724565791658,11.433071,2768.7,2768.1,6.01183]
[1724565791863,15.044961,2768.7,2768.1,6.01183]
[1724565792280,11.433071,2768.7,2768.1,6.01183]
[1724565792772,11.433071,2768.7,2768.2,0.56510627]
[1724565792953,11.433071,2768.7,2768.1,6.01183]
[1724565793261,11.07188,2768.7,2768.1,6.01183]
[1724565794069,7.46,2768.7,2768.2,4.87121035]
[1724565794224,7.46,2768.7,2768.3,2.3993]
[1724565795265,7.46,2768.7,2768.4,3.61218]
[1724565797091,7.46,2768.7,2768.3,2.3993]
[1724565797259,7.46,2768.7,2768.3,3.48758404]
[1724565797675,3.61168,2768.8,2768.3,3.48758404]
[1724565799495,3.61168,2768.8,2768.3,2.3993]
[1724565802996,1.13330342,2768.6,2768.3,2.3993]
[1724565804174,1.13330342,2768.5,2768.3,2.3993]
[1724565804601,1.13330342,2768.6,2768.3,2.3993]
[1724565805474,1.13330342,2768.5,2768.3,2.3993]
[1724565814086,1.51107123,2768.6,2768.3,2.3993]
[1724565814087,1.13330342,2768.4,2768.3,2.3993]
[1724565819367,1.51107123,2768.5,2768.3,2.3993]
[1724565819563,1.13476486,2768.4,2768.3,2.3993]
[1724565819758,1.51107123,2768.5,2768.3,2.3993]
[1724565821317,1.13498514,2768.4,2768.3,2.3993]
[1724565821479,1.51107123,2768.5,2768.3,2.3993]
[1724565823422,1.51107123,2768.4,2768.3,2.3993]
[1724565827429,1.51107123,2768.4,2768.0,11.31589533]
[1724565827753,1.13551946,2768.2,2767.9,0.54248498]
[1724565828082,1.13551946,2768.1,2767.8,7.70354533]
[1724565828243,1.13551946,2768.1,2767.8,7.16106035]
[1724565828445,1.13551946,2768.1,2767.8,7.70359436]
[1724565828663,1.13551946,2768.0,2767.8,7.70359436]
[1724565828827,1.13551946,2768.1,2767.8,7.70359436]
[1724565829024,2.39428981,2768.1,2767.8,0.54253401]
[1724565829226,2.39428981,2768.1,2767.5,2.2894]
[1724565829227,1.51107123,2767.9,2767.5,5.90276]
[1724565829543,1.13508982,2767.9,2767.5,5.90276]
[1724565830358,1.13508982,2767.9,2767.5,7.16153035]
[1724565831192,1.13508982,2767.9,2767.6,3.6132]
[1724565831362,1.13508982,2768.0,2767.6,3.6132]
[1724565835071,1.13508982,2768.0,2767.6,3.61315]
[1724565836591,1.13508982,2768.1,2767.7,3.61309]
[1724565836896,1.13508982,2768.1,2768.0,3.61271]
[1724565837052,1.13508982,2768.2,2768.0,6.05512]
[1724565839805,1.13508982,2768.3,2768.0,6.05512]
[1724565840154,1.13508982,2768.2,2768.0,6.05512]
[1724565840854,1.13508982,2768.2,2768.0,2.4425]
[1724565841569,5.12328123,2768.4,2768.0,2.4425]
[1724565841570,1.13508982,2768.3,2768.0,2.4425]
[1724565841769,1.13508982,2768.2,2768.0,2.4425]
[1724565844188,1.13508982,2768.2,2767.8,3.61288]
[1724565845114,1.13508982,2768.2,2767.7,2.4425]
[1724565845115,1.13508982,2768.1,2767.7,2.4425]
[1724565845310,1.13508982,2768.1,2767.5,7.31463035]
[1724565845616,1.13508982,2768.1,2767.5,3.70127035]
[1724565845617,3.61286,2767.9,2767.5,3.70127035]
[1724565846517,4.74779982,2768.0,2767.5,3.70127035]
[1724565846867,4.74779982,2768.0,2767.5,7.31462035]
[1724565847899,3.61271,2768.0,2767.5,7.31462035]
[1724565849070,1.13508982,2768.1,2767.6,3.61319]
[1724565851798,5.12359123,2768.2,2767.8,6.05547]
[1724565851799,1.13508982,2768.2,2767.8,6.05547]
[1724565858230,4.74754982,2768.2,2767.8,2.4425]
[1724565858376,1.13508982,2768.1,2767.8,2.4425]
[1724565859283,4.74754982,2768.2,2767.8,2.4425]
[1724565859482,1.13508982,2768.1,2767.8,2.4425]
[1724565860028,4.74754982,2768.2,2767.8,2.4425]
[1724565860796,1.13508982,2768.1,2767.8,2.4425]
[1724565861006,4.74754982,2768.2,2767.8,2.4425]
[1724565861211,1.13508982,2768.1,2767.8,2.4425]
[1724565861645,4.74754982,2768.2,2767.8,2.4425]
[1724565862740,1.13508982,2768.1,2767.8,2.4425]
[1724565864443,1.13416242,2768.1,2767.8,2.4425]
[1724565869518,1.13416242,2768.1,2767.9,3.68477035]
[1724565869714,1.51107123,2768.3,2768.0,6.0387]
[1724565869946,1.51107123,2768.4,2768.1,1.25877035]
[1724565871552,1.51107123,2768.4,2768.2,2.426]
[1724565873050,1.51107123,2768.3,2768.2,2.426]
[1724565873223,1.51107123,2768.4,2768.2,2.426]
[1724565873424,1.51107123,2768.3,2768.2,2.426]
[1724565874013,1.51107123,2768.4,2768.2,2.426]
[1724565874920,1.51107123,2768.3,2768.2,2.426]
[1724565884814,1.51107123,2768.3,2768.0,5.90224]
[1724565885016,1.1352544,2768.2,2768.0,5.90224]
[1724565886533,1.1352544,2768.2,2768.0,2.2896]
[1724565886740,1.1352544,2768.1,2768.0,2.2896]
[1724565886939,1.1352544,2768.2,2768.0,2.2896]
[1724565895438,1.1352544,2768.1,2767.6,2.2896]
[1724565895666,1.1352544,2768.1,2767.5,3.61336]
[1724565895667,1.13557868,2767.9,2767.5,5.90296]
[1724565896658,1.13557868,2767.9,2767.6,1.25877035]
[1724565897691,1.13557868,2767.9,2767.6,4.87199035]
[1724565898047,1.13557868,2767.8,2767.6,4.87199035]
[1724565898253,1.13557868,2767.9,2767.6,4.87199035]
[1724565899460,1.13557868,2767.9,2767.6,5.94947639]
[1724565899853,1.13557868,2767.9,2767.7,3.61309]
[1724565901300,1.13557868,2767.9,2767.8,7.19914035]
[1724565901506,1.51107123,2768.1,2767.8,7.19914035]
[1724565901507,1.13557868,2768.0,2767.8,7.19914035]
[1724565902802,1.13557868,2768.0,2767.9,3.61284]
[1724565904931,1.13557868,2768.0,2767.8,3.58617035]
[1724565905059,1.13557868,2768.0,2767.8,7.19914035]
[1724565905902,1.13557868,2768.0,2767.8,3.58617035]
[1724565906600,1.13557868,2768.0,2767.7,3.61299]
[1724565907101,1.13557868,2768.0,2767.7,7.22602]
[1724565907631,1.13557868,2768.0,2767.7,4.80195764]
[1724565908348,1.13557868,2768.0,2767.7,8.41498764]
[1724565908506,1.13557868,2768.0,2767.7,4.80195764]
[1724565912608,1.13557868,2768.0,2767.7,3.61299]
[1724565913472,1.13557868,2768.0,2767.8,0.5651656]
[1724565913764,1.13557868,2768.0,2767.9,0.5651656]
[1724565914473,1.13557868,2768.0,2767.9,0.56516001]
[1724565914617,1.13557868,2768.0,2767.6,3.58617035]
[1724565914818,1.13557868,2768.0,2767.9,0.56518046]
[1724565914819,4.74828868,2768.0,2767.9,0.56518046]
[1724565915048,10.15825298,2768.0,2767.5,3.61334]
[1724565915234,1.13556846,2767.9,2767.5,3.61334]
[1724565916794,1.13556846,2767.9,2767.6,1.25877035]
[1724565922376,1.13556846,2767.9,2767.6,4.87198035]
[1724565926237,1.13556846,2767.8,2767.6,4.87198035]
[1724565926635,3.57796846,2767.9,2767.6,3.61321]
[1724565931320,1.13556846,2767.8,2767.6,3.61321]
[1724565931579,3.57796846,2767.9,2767.6,3.61321]
[1724565931726,1.13556846,2767.8,2767.6,3.61321]
[1724565932896,3.57796846,2767.9,2767.6,3.61321]
[1724565933297,1.13556846,2767.8,2767.6,3.61321]
[1724565934014,3.57796846,2767.9,2767.6,3.61321]
[1724565934412,1.13556846,2767.9,2767.6,3.61321]
[1724565934612,1.13556846,2767.9,2767.6,4.87198035]
[1724565934814,1.13556846,2767.9,2767.6,11.17645286]
[1724565935139,1.13556846,2767.9,2767.6,7.22413035]
[1724565936848,1.13556846,2767.9,2767.6,7.56324413]
[1724565937046,1.13556846,2767.9,2767.6,7.22413035]
[1724565938338,1.13556846,2767.8,2767.6,7.22413035]
[1724565938733,1.13556846,2767.8,2767.6,4.87193035]
[1724565941262,1.13556846,2767.8,2767.7,0.33911571]
[1724565942036,1.13556846,2767.8,2767.7,0.33911391]
[1724565943950,1.13556846,2767.8,2767.7,3.95221391]
[1724565947178,1.13556846,2767.8,2767.7,3.95220991]
[1724565947529,1.13556846,2767.8,2767.7,3.6131]
[1724565948142,1.13556846,2767.8,2767.7,3.95220972]
[1724565950592,1.13556846,2767.8,2767.7,3.6131]
[1724565951098,1.13556846,2767.8,2767.7,3.95220983]
[1724565952849,1.13556846,2767.9,2767.7,3.95220983]
[1724565953049,1.13556846,2767.9,2767.8,0.33910983]
[1724565953748,1.13556846,2767.9,2767.7,3.6131]
[1724565953978,1.13556846,2767.8,2767.7,3.6131]
[1724565954148,1.13556846,2767.8,2767.7,3.95220453]
[1724565957162,1.13556846,2767.8,2767.7,3.6131]
[1724565957358,1.13556846,2767.8,2767.7,3.95220525]
[1724565957782,1.13556846,2767.8,2767.7,4.29130964]
[1724565958086,1.13556846,2767.8,2767.7,3.95220439]
[1724565958243,1.13556846,2767.8,2767.7,6.41140439]
[1724565958679,1.13556846,2767.9,2767.7,6.41140439]
[1724565958874,1.13556846,2767.9,2767.8,0.33910439]
[1724565959189,1.51107123,2768.0,2767.8,0.33910439]
[1724565959397,1.13696522,2767.9,2767.7,6.0723]
[1724565959550,1.13696522,2767.9,2767.8,0.33909752]
[1724565959948,1.13696522,2768.0,2767.9,9.68488]
[1724565960261,2.27379827,2768.5,2768.1,2.4592]
[1724565960262,1.13696522,2768.4,2768.1,2.4592]
[1724565960448,1.13696522,2768.4,2768.3,8.48341035]
[1724565960655,1.13696522,2768.5,2768.4,3.61219]
[1724565960962,1.13696522,2768.5,2768.4,3.95128752]
[1724565961472,1.51107123,2768.6,2768.4,3.61219]
[1724565961730,1.13645172,2768.5,2768.4,3.61219]
[1724565962321,1.51107123,2768.6,2768.3,8.48331035]
[1724565962322,1.13645172,2768.6,2768.3,8.48331035]
[1724565963137,1.13645172,2768.5,2768.3,4.87099035]
[1724565963286,1.13645172,2768.5,2768.3,5.99916382]
[1724565963480,1.13645172,2768.6,2768.1,7.33046035]
[1724565963686,1.13645172,2768.5,2768.1,7.33046035]
[1724565965410,1.13645172,2768.5,2768.1,10.94296035]
[1724565966962,1.13645172,2768.6,2768.2,3.61244]
[1724565967957,1.13645172,2768.7,2768.3,4.87109035]
[1724565975697,4.74813172,2768.8,2768.3,4.87109035]
[1724565976004,4.74831172,2768.7,2768.1,6.07169]
[1724565976184,4.74884172,2768.3,2767.7,3.613]
[1724565976490,7.22371172,2768.2,2767.7,3.613]
[1724565977368,10.83626172,2768.2,2767.6,2.2749]
[1724565977569,3.61259,2768.1,2767.5,3.61326]
[1724565977887,3.61259,2768.1,2767.6,3.61322]
[1724565978757,4.74904172,2768.1,2767.6,3.61322]
[1724565978958,4.74904172,2768.1,2767.5,4.69883803]
[1724565979797,3.61271,2768.0,2767.5,4.69883803]
[1724565980316,4.74916172,2768.0,2767.5,3.61326]
[1724565983070,4.74916172,2768.0,2767.5,4.87203035]
[1724565983303,3.61271,2768.0,2767.5,4.87203035]
[1724565985989,3.61271,2768.0,2767.5,3.61326]
[1724565986490,3.61271,2768.0,2767.5,4.87203035]
[1724565986693,3.61271,2768.0,2767.5,5.95761138]
[1724565994455,3.61271,2768.0,2767.5,1.08558103]
[1724565994623,3.61271,2768.0,2767.4,3.62897035]
[1724565995306,7.22552,2768.0,2767.4,3.62897035]
[1724565995580,3.61318,2767.7,2767.2,1.25877035]
[1724565996821,7.22637,2767.7,2767.2,1.25877035]
[1724565997034,7.22637,2767.7,2766.7,7.34]
[1724565997035,3.65367035,2767.6,2766.7,13.36984]
[1724565997360,3.61348,2767.5,2766.9,3.61414]
[1724565997726,7.22694,2767.5,2766.9,3.61414]
[1724565997926,7.22692,2767.5,2766.9,3.61414]
[1724565998131,3.61346,2767.5,2766.9,3.61414]
[1724565999227,3.61346,2767.5,2766.9,7.22821]
[1724566000064,3.61346,2767.5,2766.9,3.61407]
[1724566000261,3.6135,2767.4,2766.9,3.61407]
[1724566000558,2.3949,2767.6,2767.0,7.28825035]
[1724566000769,3.61337,2767.5,2767.0,1.25877035]
[1724566003967,3.61337,2767.5,2767.0,1.25877035]
[1724566004461,3.61351,2767.4,2767.0,1.25877035]
[1724566006132,3.61389,2767.1,2766.6,0.5664719]
[1724566006317,3.61425,2766.9,2766.6,0.5664719]
[1724566006520,3.61425,2766.9,2766.4,1.25877035]
[1724566006718,3.61425,2766.9,2766.4,1.98768239]
[1724566007017,3.61405,2767.0,2766.1,3.61513]
[1724566007018,3.61454,2766.6,2766.1,3.61513]
[1724566007272,4.87362035,2766.4,2765.8,0.067207]
[1724566007429,3.61514,2766.2,2765.8,0.067207]
[1724566008411,3.61521,2766.1,2765.8,0.067207]
[1724566010518,7.23052,2766.1,2765.8,0.067207]
[1724566010722,4.584582,2766.1,2765.8,0.067207]
[1724566011464,3.61521,2766.1,2765.8,0.067207]
[1724566015723,3.61534,2766.0,2765.8,0.067207]
[1724566016326,9.6941,2765.9,2765.8,0.067207]
[1724566016985,16.85955,2765.9,2765.8,0.067207]
[1724566017673,3.61698,2764.8,2764.2,3.61765]
[1724566018477,1.25877035,2764.6,2763.8,4.18519418]
[1724566018645,3.61755,2764.3,2763.8,0.56707418]
[1724566019327,3.6177,2764.2,2763.8,0.56707418]
[1724566019780,3.61782,2764.1,2763.4,5.88639]
[1724566020028,7.23575,2764.1,2763.4,5.88631]
[1724566020268,8.08520204,2764.1,2763.4,5.88631]
[1724566020439,4.46727204,2764.1,2763.5,3.61859]
[1724566021976,4.46727204,2764.1,2763.5,7.23709]
[1724566022274,0.84945204,2764.1,2763.6,3.61846]
[1724566022428,0.84945204,2764.1,2763.5,3.6185]
[1724566022629,4.46729204,2764.1,2763.5,3.6185]
[1724566023533,7.23524,2764.3,2763.5,3.6185]
[1724566023729,7.23524,2764.3,2763.7,3.61831]
[1724566023730,3.61759,2764.3,2763.7,3.61831]
[1724566024634,3.6177,2764.2,2763.7,3.61831]
[1724566024959,3.6177,2764.2,2763.6,3.61843]
[1724566025146,3.61759,2764.3,2763.6,3.61843]
[1724566025478,3.61759,2764.3,2763.5,3.61849]
[1724566025479,1.107759,2764.2,2763.7,3.61831]
[1724566025630,7.46,2764.4,2763.4,2.2677]
[1724566025631,7.46,2764.4,2763.8,0.07236391]
[1724566025831,7.46,2764.4,2764.1,3.61772]
[1724566026082,7.46,2764.4,2763.9,3.61797]
[1724566027146,7.46,2764.4,2763.9,7.23593]
[1724566027345,7.46,2764.4,2763.9,3.61796]
[1724566027683,7.46,2764.4,2763.7,5.88598]
[1724566027684,1.107737,2764.3,2763.8,3.6182]
[1724566029245,1.107737,2764.3,2763.9,3.61805]
[1724566029481,1.107737,2764.3,2763.9,7.23596]
[1724566029950,1.107737,2764.3,2764.0,3.61791]
[1724566030469,1.107737,2764.3,2763.9,3.61797]
[1724566031149,7.46,2764.4,2763.7,2.2677]
[1724566031484,7.46,2764.4,2763.9,3.61806]
[1724566031983,13.44164,2764.4,2763.9,3.61806]
[1724566032286,13.44164,2764.4,2763.7,9.50424]
[1724566032602,13.44164,2764.4,2763.5,3.6185]
[1724566032603,3.61777,2764.2,2763.5,3.6185]
[1724566032893,3.61777,2764.2,2763.7,3.61831]
[1724566035078,3.61777,2764.2,2763.5,3.61849]
[1724566035581,3.61777,2764.2,2763.6,3.61838]
[1724566035779,3.61777,2764.2,2763.7,3.61832]
[1724566035974,0.4961934,2764.1,2763.7,3.61832]
[1724566036606,1.344164,2764.3,2763.7,7.23658]
[1724566036962,7.46,2764.4,2764.1,3.61772]
[1724566037162,7.46,2764.4,2764.2,3.61755]
[1724566037393,7.46,2764.4,2764.3,3.61755]
[1724566040203,7.46,2764.4,2764.3,7.2351]
[1724566041829,5.89038,2765.0,2764.4,3.61729]
[1724566042031,1.335038,2764.9,2764.4,3.61729]
[1724566042326,7.46,2765.1,2764.5,3.61726]
[1724566043101,7.46,2765.1,2764.7,3.61695]
[1724566044244,7.46,2765.1,2764.8,3.61688]
[1724566044536,7.46,2765.1,2764.7,3.61695]
[1724566044698,7.46,2765.1,2764.5,3.61719]
[1724566045420,7.46,2765.1,2764.6,3.61708]
[1724566045614,8.567646,2765.1,2764.6,3.61708]
[1724566045984,8.567646,2765.1,2764.6,3.61714]
[1724566046232,14.457856,2765.1,2764.5,3.61719]
[1724566046735,10.841346,2765.1,2764.5,3.61719]
[1724566046884,10.841346,2765.1,2764.6,3.61707]
[1724566047586,5.0624206,2765.0,2764.3,7.23496]
[1724566047786,3.61664,2765.0,2764.3,3.61745]
[1724566048226,3.61664,2765.0,2764.4,3.61734]
[1724566049844,5.89021,2765.1,2764.5,7.23448]
[1724566050045,5.89021,2765.1,2764.5,3.6172]
[1724566050201,0.950664,2765.0,2764.5,3.6172]
[1724566050400,0.950664,2765.0,2764.6,3.61713]
[1724566050637,0.950664,2765.0,2764.5,3.6172]
[1724566052433,4.567364,2765.0,2764.3,3.61744]
[1724566052742,3.61684,2764.9,2764.3,7.23491]
[1724566052947,0.6841064,2764.9,2764.4,3.61741]
[1724566054134,4.3008764,2764.9,2764.3,3.61744]
[1724566054491,2.2737,2764.8,2764.3,3.61744]
[1724566056335,2.2737,2764.8,2764.3,7.2349]
[1724566056645,3.61713,2764.7,2764.1,3.6178]
[1724566056958,3.61713,2764.7,2764.1,3.61774]
[1724566057306,3.61713,2764.7,2764.1,7.23547]
[1724566057506,3.61713,2764.7,2764.2,3.61767]
[1724566058146,2.2737,2764.8,2764.2,3.61767]
[1724566058352,0.55,2764.7,2764.2,3.61767]
[1724566058947,7.46,2765.1,2764.6,3.61709]
[1724566059112,7.46,2765.1,2764.6,3.61708]
[1724566059447,7.46,2765.1,2764.6,7.23415]
[1724566059940,7.46,2765.1,2764.6,3.61707]
[1724566060147,1.339018,2765.0,2764.6,3.61707]
[1724566065243,2.3138,2764.9,2764.4,3.61734]
[1724566066145,2.3138,2764.9,2764.5,3.61729]
[1724566066712,2.3138,2764.9,2764.4,7.23468]
[1724566067671,2.3138,2764.9,2764.4,3.61734]
[1724566067904,7.4035778,2764.9,2764.4,3.61734]
[1724566068279,3.61698,2764.8,2764.2,3.61758]
[1724566068611,4.16698,2764.8,2764.2,3.61758]
[1724566069086,3.6171,2764.7,2764.2,3.61758]
[1724566070190,4.16698,2764.8,2764.2,3.61758]
[1724566070501,0.79537278,2764.7,2764.2,3.61758]
[1724566071286,0.79537278,2764.7,2764.2,7.23518]
[1724566071492,0.79537278,2764.7,2764.3,3.61752]
[1724566072101,0.79537278,2764.7,2764.2,3.61758]
[1724566072302,0.79537278,2764.7,2764.2,7.23518]
[1724566072687,0.79537278,2764.7,2764.3,3.61754]
[1724566076495,0.79537278,2764.7,2764.4,3.61741]
[1724566080729,0.79537278,2764.7,2764.2,3.61756]
[1724566080914,0.79537278,2764.7,2764.3,3.61744]
[1724566081113,0.79537278,2764.7,2764.4,3.6174]
[1724566082406,1.9318245,2764.7,2764.4,3.6174]
[1724566086418,1.13645172,2764.6,2764.4,3.6174]
[1724566086606,1.9318245,2764.7,2764.4,3.6174]
[1724566087710,2.3765,2764.5,2764.1,3.61781]
[1724566087918,1.13645172,2764.4,2764.0,3.61794]
[1724566088131,1.13645172,2764.3,2763.8,3.61808]
[1724566088327,1.13645172,2764.3,2764.0,3.61793]
[1724566089622,1.03083566,2764.4,2764.0,3.61793]
[1724566089623,2.16728738,2764.4,2764.0,7.2358]
[1724566090075,2.16728738,2764.4,2764.0,3.61787]
[1724566090577,5.78470738,2764.4,2763.8,3.61813]
[1724566090874,1.26774411,2764.1,2763.6,3.6184]
[1724566091169,6.02200583,2764.1,2763.6,3.6184]
[1724566091377,1.13645172,2764.1,2763.6,3.6184]
[1724566091739,3.51295172,2764.2,2763.6,3.6184]
[1724566091960,1.19150623,2764.1,2763.6,3.61838]
[1724566092205,1.19150623,2764.1,2763.4,3.61866]
[1724566092475,3.59570206,2764.1,2763.6,3.61839]
[1724566092827,2.45925034,2764.1,2763.6,3.61839]
[1724566093023,2.45925034,2764.1,2763.6,6.08039]
[1724566093024,1.19150623,2764.1,2763.6,6.08039]
[1724566095177,4.80934623,2764.1,2763.6,6.08039]
[1724566095932,4.80934623,2764.1,2763.6,3.61839]
[1724566098230,6.07709034,2764.1,2763.4,6.08066]
[1724566098399,6.07709034,2764.1,2763.5,3.61855]
[1724566098616,4.80934623,2764.1,2763.5,3.61855]
[1724566098838,4.80934623,2764.1,2763.6,3.61842]
[1724566100545,4.80934623,2764.1,2763.4,10.96702411]
[1724566101118,4.80934623,2764.1,2763.4,7.34836411]
[1724566101314,2.3556,2763.9,2763.4,3.61862]